Workbook

Sheet Sheet1
B2: Problem 1 : IRR returning #NUM! errors
B3: IRR | C3: =IRR(C6:I6) -> 
B5: Year | C5: 0 | D5: =C5+1 -> 1 | E5: =D5+1 -> 2 | F5: =E5+1 -> 3 | G5: =F5+1 -> 4 | H5: =G5+1 -> 5 | I5: =H5+1 -> 6
B6: Cash (Invested)/Return | C6: -14000 | D6: 0 | E6: 0 | F6: 0 | G6: 50 | H6: 50 | I6: 50
C9: Initial Investment | G9: Total of 150 earned over 6 yrs
B13: Problem 2 : Total cashflows are negative
B14: IRR | C14: =IRR(C17:G17) -> 0.5011950922
B16: Year | C16: 0 | D16: =C16+1 -> 1 | E16: =D16+1 -> 2 | F16: =E16+1 -> 3 | G16: =F16+1 -> 4
B17: Cash (Invested)/Return | C17: -10 | D17: 150 | E17: -145 | F17: 80 | G17: -250
E20: Net Cashflow of negative -175
B24: Problem 3 : Multiple IRRs
B25: IRR 1 | C25: =IRR(C29:H29,-30%) -> -0.1919973809
B26: IRR 2 | C26: =IRR(C29:H29,50%) -> 0.7205212703
B28: Year | C28: 0 | D28: =C28+1 -> 1 | E28: =D28+1 -> 2 | F28: 3 | G28: 4 | H28: =G28+1 -> 5
B29: Cash (Invested)/Return | C29: -580 | D29: 530 | E29: 530 | F29: 530 | G29: 530 | H29: -1080
B31: IRRs or Discount Rates | C31: NPV
B32: =C25 -> -0.1919973809 | C32: =NPV(B32,$C$29:$H$29) -> -9.792794872e-11
B33: =B32+5% -> -0.1419973809 | C33: =NPV(B33,$C$29:$H$29) -> 293.7959487
B34: =B33+5% -> -0.09199738088 | C34: =NPV(B34,$C$29:$H$29) -> 423.3545094
B35: -0.04199738088 | C35: =NPV(B35,$C$29:$H$29) -> 463.8206413
B36: =B35+10% -> 0.05800261912 | C36: =NPV(B36,$C$29:$H$29) -> 425.5672525
B37: =B36+10% -> 0.1580026191 | C37: =NPV(B37,$C$29:$H$29) -> 337.0601898
B38: 0.2580026191 | C38: =NPV(B38,$C$29:$H$29) -> 247.4170556
B39: 0.3580026191 | C39: =NPV(B39,$C$29:$H$29) -> 170.3211002
B40: 0.4580026191 | C40: =NPV(B40,$C$29:$H$29) -> 107.8181089
B41: 0.5580026191 | C41: =NPV(B41,$C$29:$H$29) -> 58.38764435
B42: 0.6580026191 | C42: =NPV(B42,$C$29:$H$29) -> 19.71169556
B43: =C26 -> 0.7205212703 | C43: =NPV(B43,$C$29:$H$29) -> -8.259621639e-14
C45: Notice that 2 IRRs are making the NPV as 0
B49: Problem 4 : Cash flows are not at equal intervals
B50: IRR | C50: =IRR(C54:H54) -> 0.1266849873
B51: XIRR | C51: =XIRR(C54:H54,C53:H53) -> 0.4742221177
B53: Dates | C53: 2015-01-01 | D53: 2015-04-16 | E53: 2015-08-23 | F53: 2015-12-02 | G53: 2016-03-14 | H53: 2016-07-23
B54: Cash (Invested)/Return | C54: -580 | D54: 183 | E54: 166 | F54: 176 | G54: 105 | H54: 179

Sheet Annual vs Qtrly IRR
C2: Dates | D2: Cash Flows | F2: Qtr | G2: Total Annual Cash flow
C3: 2015-01-01 | D3: -500 | F3: 2015-01-01 | G3: -500
C4: 2015-04-01 | D4: 65 | F4: 2015-12-31 | G4: 195
C5: 2015-07-01 | D5: 57 | F5: =EOMONTH(F4,12) -> 2016-12-31 | G5: 250
C6: 2015-10-01 | D6: 73 | F6: =EOMONTH(F5,12) -> 2017-12-31 | G6: 282
C7: 2016-01-01 | D7: 53 | F7: 2018-12-31 | G7: 238
C8: 2016-04-01 | D8: 74
C9: 2016-07-01 | D9: 61 | F9: XIRR | G9: =XIRR(G3:G7,F3:F7) -> 0.3110350668
C10: 2016-10-01 | D10: 62
C11: 2017-01-01 | D11: 59
C12: 2017-04-01 | D12: 80
C13: 2017-07-01 | D13: 69
C14: 2017-10-01 | D14: 74
C15: 2018-01-01 | D15: 50
C16: 2018-04-01 | D16: 78
C17: 2018-07-01 | D17: 59
C18: 2018-10-01 | D18: 51
C20: XIRR | D20: =XIRR(D3:D18,C3:C18) -> 0.4453068674

Sheet Reinvestment Rate Problem
B2: Reverse Years | C2: 5 | D2: 4 | E2: 3 | F2: 2 | G2: 1 | H2: 0
B3: Year | C3: 0 | D3: =C3+1 -> 1 | E3: =D3+1 -> 2 | F3: 3 | G3: 4 | H3: 5
B4: Cash Flows | C4: -300 | D4: 73 | E4: 127 | F4: 90 | G4: 91 | H4: 83
B6: IRR | C6: =IRR(C4:H4) -> 0.1667744602
B8: FV of Cash Flows | C8: =C4*(1+$C$6)^C2 -> -648.7178165 | D8: 135.2915015 | E8: 201.7272014 | F8: 122.5226377 | G8: 106.1764759 | H8: =H4*(1+$C$6)^H2 -> 83
C10: Using 16.68% to compound the cash flows each year is an unrealistic assumption
